bitfinex/quotes_ETHUSD_20250213
["timestamp","ask_amount","ask_price","bid_price","bid_amount"]
[1739489262876,9.57268042,2678.9,2678.3,4.5512]
[1739489263199,2.245,2678.9,2678.4,3.73357]
[1739489263400,2.245,2678.8,2678.2,3.73376]
[1739489263604,5.97807,2678.8,2678.3,3.7337]
[1739489263807,3.73319,2678.7,2678.3,3.7337]
[1739489264119,3.73319,2678.7,2678.2,3.73379]
[1739489264721,2.245,2678.7,2678.3,3.73359]
[1739489265276,2.245,2678.7,2678.2,3.73383]
[1739489265624,2.245,2678.7,2678.4,3.73355]
[1739489266481,2.245,2678.7,2678.3,3.73369]
[1739489267576,5.97835,2678.6,2678.1,3.73394]
[1739489267775,5.97835,2678.6,2678.2,3.73384]
[1739489268691,2.245,2678.6,2678.3,3.7337]
[1739489269816,2.245,2678.4,2677.6,4.58080212]
[1739489270025,2.245,2678.4,2678.0,3.73404]
[1739489273508,2.245,2678.3,2678.0,3.73404]
[1739489273710,2.245,2678.3,2678.1,3.73392]
[1739489273911,2.245,2678.6,2678.2,3.73373]
[1739489274145,2.245,2678.6,2678.2,7.46748]
[1739489274320,2.245,2678.6,2678.2,3.73373]
[1739489274527,5.97838,2678.6,2678.1,3.73396]
[1739489274910,5.97838,2678.6,2678.2,3.73382]
[1739489275271,2.245,2678.6,2678.2,3.73382]
[1739489275474,2.245,2678.5,2678.3,3.73362]
[1739489276247,2.245,2678.5,2678.3,3.73363]
[1739489276508,2.245,2678.8,2678.3,3.73363]
[1739489276690,5.97804,2678.8,2678.4,3.73351]
[1739489277893,5.97804,2678.8,2678.3,3.73363]
[1739489278057,5.97804,2678.8,2678.3,7.46724]
[1739489278461,5.97804,2678.8,2678.4,3.73356]
[1739489278662,2.245,2678.8,2678.4,3.73344]
[1739489278865,2.245,2678.8,2678.4,4.54974]
[1739489279174,5.97776,2679.0,2678.5,3.73333]
[1739489279574,5.97793,2678.9,2678.5,3.73342]
[1739489279959,5.97793,2678.9,2678.3,3.7337]
[1739489279960,5.97816,2678.7,2678.3,3.7337]
[1739489280365,5.97831,2678.6,2678.1,8.28408]
[1739489280585,5.97831,2678.6,2678.1,7.46778]
[1739489280791,5.97831,2678.6,2678.2,3.73384]
[1739489281165,5.97844,2678.5,2678.1,3.73396]
[1739489281367,5.97844,2678.5,2678.0,3.73411]
[1739489281569,3.7336,2678.4,2678.0,3.73411]
[1739489282121,2.245,2678.5,2678.2,3.73383]
[1739489282715,2.245,2678.5,2678.1,3.73398]
[1739489283162,2.245,2678.5,2678.1,3.73399]
[1739489283395,3.73351,2678.5,2678.1,3.73393]
[1739489283708,5.97851,2678.5,2678.0,3.73412]
[1739489283909,2.245,2678.5,2678.1,3.73392]
[1739489284323,2.245,2678.5,2678.2,3.73377]
[1739489285844,2.245,2678.7,2678.2,3.73377]
[1739489286006,5.97816,2678.7,2678.3,3.73369]
[1739489286209,2.245,2678.5,2678.1,4.556894]
[1739489287448,2.245,2678.5,2678.1,0.822984]
[1739489287749,5.97852,2678.5,2678.0,3.73409]
[1739489289111,5.97852,2678.5,2678.1,3.73395]
[1739489289324,5.97852,2678.5,2678.0,3.73405]
[1739489289549,5.97852,2678.5,2678.1,3.73395]
[1739489290257,2.245,2678.6,2678.1,3.73391]
[1739489290414,5.97844,2678.5,2678.0,3.73404]
[1739489290859,5.97849,2678.5,2678.1,3.7339]
[1739489291152,5.97849,2678.5,2678.1,4.556888]
[1739489291790,2.245,2678.5,2678.1,4.556888]
[1739489291995,2.245,2678.5,2678.1,4.556878]
[1739489292289,5.97845,2678.5,2678.1,4.556878]
[1739489292496,2.245,2678.5,2678.1,4.556878]
[1739489292885,5.97844,2678.5,2678.1,4.556878]
[1739489293899,2.245,2678.5,2678.2,3.73379]
[1739489294098,2.245,2678.5,2678.1,4.556878]
[1739489294610,5.97848,2678.5,2678.1,4.556878]
[1739489294813,5.97848,2678.5,2678.1,3.73389]
[1739489295112,3.73336,2678.6,2678.1,3.73389]
[1739489295313,2.245,2678.5,2678.2,3.73379]
[1739489295770,2.245,2678.5,2678.0,3.73411]
[1739489295978,2.245,2678.5,2678.1,3.73398]
[1739489298121,2.245,2678.5,2678.0,3.73411]
[1739489298365,2.245,2678.5,2678.1,3.73399]
[1739489298523,2.245,2678.5,2678.2,3.73379]
[1739489298703,2.245,2678.5,2678.1,3.73399]
[1739489299017,2.245,2678.5,2678.1,7.46798]
[1739489299179,2.245,2678.5,2678.2,3.73384]
[1739489299580,2.245,2678.6,2678.2,3.73384]
[1739489299775,5.97831,2678.6,2678.2,3.73384]
[1739489300001,5.97831,2678.6,2678.1,3.73393]
[1739489300221,5.97831,2678.6,2678.1,4.6018651]
[1739489301016,3.73346,2678.5,2678.1,0.8679351]
[1739489301322,2.245,2678.5,2678.1,4.6018851]
[1739489302337,2.245,2678.5,2678.2,3.73383]
[1739489303808,2.245,2678.5,2678.2,3.73376]
[1739489304528,2.245,2678.5,2678.2,3.73384]
[1739489304729,2.245,2678.5,2678.2,3.73372]
[1739489304928,2.245,2678.5,2678.3,3.73363]
[1739489305099,2.245,2678.5,2678.4,3.73357]
[1739489305447,2.245,2678.9,2678.4,3.73357]
[1739489305736,2.245,2678.9,2678.5,3.73336]
[1739489306125,5.97788,2678.9,2678.4,7.46706]
[1739489306503,2.245,2678.7,2678.4,3.73349]
[1739489306705,2.245,2678.7,2678.4,7.46699]
[1739489306908,2.245,2678.7,2678.4,3.73349]
[1739489307522,3.73334,2678.6,2678.2,4.16838019]
[1739489307703,5.97834,2678.6,2678.1,0.7559]
[1739489308002,5.97834,2678.6,2678.1,3.73399]
[1739489308202,2.245,2678.6,2678.2,3.73379]
[1739489309452,2.245,2678.5,2678.2,3.73379]
[1739489309968,2.245,2678.5,2678.0,3.73404]
[1739489310133,5.97849,2678.5,2678.0,3.73404]
[1739489310467,5.97849,2678.5,2678.1,3.73395]
[1739489310842,5.97829,2678.6,2678.1,3.73395]
[1739489311043,2.245,2678.6,2678.3,3.73364]
[1739489311243,2.245,2678.6,2678.2,3.73378]
[1739489312069,2.245,2678.6,2678.1,3.73389]
[1739489312367,2.245,2678.3,2678.0,3.73412]
[1739489312568,2.245,2678.3,2677.9,3.73421]
[1739489312769,2.245,2678.3,2677.9,3.73418]
[1739489313071,2.245,2678.3,2677.9,7.46838]
[1739489313274,2.245,2678.3,2678.0,3.73412]
[1739489313447,2.245,2678.3,2678.0,3.73403]
[1739489313878,2.245,2678.3,2678.0,7.46807]
[1739489314379,2.245,2678.3,2678.0,3.73403]
[1739489314691,2.245,2678.4,2678.1,3.73398]
[1739489318247,2.245,2678.4,2677.9,0.7689]
[1739489318430,5.97859,2678.4,2678.0,3.7341]
[1739489318636,2.245,2678.3,2678.0,3.7341]
[1739489320681,2.245,2678.4,2678.0,3.7341]
[1739489321379,2.245,2678.4,2678.1,3.73396]
[1739489322651,2.245,2678.4,2678.0,7.46815]
[1739489323435,2.245,2678.4,2678.0,3.73405]
[1739489323774,2.245,2678.4,2678.1,3.73395]
[1739489324441,2.245,2678.3,2678.1,3.73395]
[1739489324777,2.245,2678.5,2678.2,3.73379]
[1739489325782,2.245,2678.5,2678.1,3.73395]
[1739489326237,2.245,2678.5,2678.1,3.73393]
[1739489326438,2.245,2678.5,2678.2,3.73373]
[1739489328637,2.245,2678.5,2677.9,0.7689]
[1739489328832,5.32,2678.6,2678.3,3.73368]
[1739489329061,5.32,2678.6,2678.4,3.73357]
[1739489329474,7.06266261,2678.6,2677.9,0.7866]
[1739489329678,1.74266261,2678.0,2677.3,0.7866]
[1739489329834,3.98766261,2677.8,2677.3,0.7866]
[1739489330047,1.74266261,2677.6,2677.3,5.31041789]
[1739489330305,2.245,2677.6,2677.3,5.31041789]
[1739489330799,2.245,2677.3,2676.9,4.48143527]
[1739489331000,3.98766261,2677.2,2676.8,4.58608078]
[1739489331348,3.98766261,2677.2,2676.9,3.0]
[1739489331741,1.74266261,2677.2,2676.9,3.0]
[1739489331943,1.74266261,2677.2,2676.8,3.73573]
[1739489332201,1.74266261,2677.2,2676.9,3.73563]
[1739489332654,1.74266261,2677.4,2677.1,3.73527]
[1739489333381,1.74266261,2677.4,2677.0,3.73544]
[1739489333551,1.74266261,2677.4,2677.1,3.73538]
[1739489333758,2.245,2677.5,2677.1,3.73534]
[1739489334270,3.7347,2677.6,2677.1,3.73534]
[1739489334502,2.245,2677.5,2676.9,7.564516]
[1739489334648,5.97985,2677.5,2677.0,3.73549]
[1739489334948,3.73497,2677.4,2676.9,3.828976]
[1739489335508,3.73497,2677.4,2676.9,3.73565]
[1739489335859,3.73497,2677.4,2676.8,7.47139]
[1739489336509,3.73497,2677.4,2676.9,3.73565]
[1739489337008,7.47003,2677.4,2676.9,3.73565]
[1739489337204,3.73497,2677.4,2676.9,3.73565]
[1739489337411,7.47001,2677.4,2676.9,3.73565]
[1739489337626,3.73518,2677.3,2676.8,3.73569]
[1739489339012,3.7351,2677.3,2676.8,3.73569]
[1739489339401,3.73497,2677.4,2676.8,3.73569]
[1739489339555,3.73524,2677.2,2676.8,3.73569]
[1739489340181,3.73524,2677.2,2676.7,3.7359]
[1739489340650,3.73524,2677.2,2676.6,3.736]
[1739489340651,3.73545,2677.1,2676.6,3.736]
[1739489341105,3.73572,2676.9,2676.4,3.73626]
[1739489341608,3.73564,2677.0,2676.5,3.73613]
[1739489342012,5.589,2677.1,2676.8,3.73579]
[1739489344058,9.32438,2677.1,2676.6,4.54949]
[1739489344855,3.73553,2677.0,2676.6,4.54949]
[1739489345153,9.32443,2677.1,2676.6,3.73599]
[1739489345820,9.05543,2677.1,2676.6,3.73599]
[1739489346227,12.79089,2677.1,2676.7,0.03795373]
[1739489346612,9.05543,2677.1,2676.7,0.03795373]
[1739489346810,9.05543,2677.1,2676.7,3.77384373]
[1739489347563,9.05543,2677.1,2676.7,0.03795373]
[1739489347706,12.79091,2677.1,2676.7,0.03795373]
[1739489347908,9.05543,2677.1,2676.7,3.73592]
[1739489348116,9.05543,2677.1,2676.8,0.04028897]
[1739489348575,9.05543,2677.1,2676.7,3.73592]
[1739489348775,9.05543,2677.1,2676.9,0.04028897]
[1739489348926,9.05543,2677.1,2676.7,3.73592]
[1739489349431,9.05543,2677.1,2676.8,0.04028897]
[1739489349885,9.05543,2677.1,2676.5,3.73619]
[1739489350173,5.32,2677.1,2676.9,0.04028897]
[1739489350325,9.0554,2677.1,2676.7,3.73593]
[1739489350867,9.0554,2677.1,2676.8,0.04028897]
[1739489351075,5.32,2677.1,2676.7,3.73593]
[1739489351284,5.32,2677.1,2676.9,0.04028897]
[1739489351469,5.32,2677.1,2676.7,3.73588]
[1739489351470,9.05538,2677.1,2676.7,3.73588]
[1739489351682,9.05538,2677.1,2677.0,0.04028897]
[1739489351995,5.32,2677.1,2677.0,0.04028897]
[1739489352286,5.32,2677.1,2676.7,3.73588]
[1739489352458,9.05538,2677.1,2677.0,0.04028897]
[1739489352640,9.05538,2677.1,2676.7,3.73588]
[1739489352841,9.05538,2677.1,2677.0,0.04028897]
[1739489353085,9.05538,2677.1,2676.6,3.73607]
[1739489353384,3.73556,2677.0,2676.6,3.73607]
[1739489354311,9.05538,2677.1,2676.6,3.73607]
[1739489355105,9.05538,2677.1,2676.7,3.73591]
[1739489355315,3.73559,2677.0,2676.4,0.7573]
[1739489355610,9.05538,2677.1,2676.6,3.73597]
[1739489356025,9.05538,2677.1,2676.6,7.47195]
[1739489356326,9.05538,2677.1,2676.6,7.47196]
[1739489356520,5.32,2677.1,2676.7,3.73585]
[1739489357728,9.05538,2677.1,2676.7,3.73585]
[1739489357896,3.73538,2677.1,2676.7,3.72585]
[1739489358230,9.05528,2677.2,2676.7,3.72585]
[1739489358531,3.73542,2677.1,2676.7,3.72585]
[1739489358771,3.73555,2677.0,2676.5,3.73608]
[1739489359490,5.32,2677.2,2676.3,3.73641]
[1739489359491,3.73588,2676.8,2676.3,3.73641]
[1739489360007,3.73588,2676.8,2676.2,0.7678]
[1739489360138,3.73604,2676.7,2676.2,4.50442]
[1739489360545,3.73614,2676.6,2676.2,0.7678]
[1739489360874,3.73614,2676.6,2676.1,3.73671]
[1739489361076,3.7363,2676.5,2676.0,4.5697]
[1739489361442,9.0563,2676.5,2676.0,3.7368]
[1739489362241,9.0563,2676.5,2675.8,4.56997]
[1739489362476,5.32,2676.5,2676.0,3.73691]
[1739489362634,5.32,2676.5,2676.3,3.73642]
[1739489363613,5.32,2676.5,2676.2,4.49053]
[1739489365275,5.32,2676.5,2676.3,3.73641]
[1739489365440,5.32,2676.5,2676.3,3.73647]
[1739489365643,5.32,2676.5,2676.4,3.73636]
[1739489366716,5.589,2676.9,2676.3,4.559176]
[1739489367017,5.32,2676.9,2676.6,3.73607]
[1739489367193,5.32,2676.9,2676.7,3.73591]
[1739489367595,5.32,2677.0,2676.9,3.73566]
[1739489367805,2.514,2677.4,2676.9,3.73566]
[1739489368007,6.24896,2677.4,2676.9,3.73566]
[1739489368326,2.514,2677.4,2676.9,3.73566]
[1739489368681,6.24905,2677.4,2676.8,3.7358]
[1739489368899,6.24905,2677.4,2676.9,3.73566]
[1739489369298,11.30005,2677.4,2676.9,7.47126]
[1739489369498,11.30005,2677.4,2676.9,3.7356]
[1739489369818,7.565,2677.4,2676.9,7.47119]
[1739489371028,5.32,2677.4,2677.1,7.47064]
[1739489371229,5.32,2677.4,2677.1,3.73527]
[1739489372096,5.32,2677.4,2677.2,3.73512]
[1739489372609,5.32,2677.5,2677.2,3.73512]
[1739489372835,7.565,2677.5,2677.2,3.73512]
[1739489373592,7.565,2677.5,2677.1,3.73527]
[1739489375142,7.565,2677.5,2677.2,3.73519]
[1739489375434,5.32,2677.5,2677.3,3.73507]
[1739489377516,3.73428,2677.9,2677.1,3.73529]
[1739489377517,5.32,2677.6,2677.4,3.73488]
[1739489377719,5.32,2677.8,2677.4,3.73488]
[1739489378046,9.05428,2677.9,2677.4,7.46977]
[1739489378205,11.29928,2677.9,2677.4,3.73487]
[1739489378410,3.73443,2677.8,2677.3,3.73509]
[1739489380812,3.73443,2677.8,2677.3,3.73504]
[1739489381013,3.73443,2677.8,2677.4,3.73496]
[1739489382444,7.565,2677.9,2677.4,3.73496]
[1739489382649,11.29927,2677.9,2677.5,3.7348]
[1739489382877,7.565,2677.9,2677.6,3.73467]
[1739489383010,7.565,2677.9,2677.6,4.52777]
[1739489383544,5.32,2677.9,2677.7,3.73449]
[1739489383710,5.32,2677.9,2677.8,3.7344]
[1739489384354,5.32,2677.9,2677.7,3.73449]
[1739489386376,5.32,2677.9,2677.6,0.7931]
[1739489386737,5.32,2677.9,2677.6,4.52778]
[1739489387159,5.32,2677.9,2677.7,3.73447]
[1739489387559,9.05402,2678.1,2677.7,3.73447]
[1739489388076,3.73421,2678.0,2677.6,4.52777]
[1739489388281,9.05401,2678.1,2677.6,4.52777]
[1739489388576,5.32,2678.1,2677.7,3.73447]
[1739489390182,3.7342,2678.0,2677.6,4.52776]
[1739489391753,3.73434,2677.9,2677.6,0.7931]
[1739489392078,9.05408,2678.1,2677.6,0.7931]
[1739489392235,12.78819,2678.1,2677.6,4.52771]
[1739489392446,12.78816,2678.1,2677.6,4.52771]
[1739489392650,9.05408,2678.1,2677.6,0.7931]
[1739489392886,9.05408,2678.1,2677.7,3.73453]
[1739489393887,9.05408,2678.1,2677.7,7.469]
[1739489394068,5.32,2678.1,2677.7,7.469]
[1739489394261,5.32,2678.1,2677.8,3.7344]
[1739489395860,9.05409,2678.1,2677.6,4.52767]
[1739489396059,3.73415,2678.0,2677.6,0.7931]
[1739489396277,3.73415,2678.0,2677.6,4.52773]
[1739489396470,11.29899,2678.1,2677.6,0.7931]
[1739489396799,11.29899,2678.1,2677.7,3.73453]
[1739489396800,7.565,2678.1,2677.7,3.73453]
[1739489397601,11.29899,2678.1,2677.7,3.73453]
[1739489398723,11.29899,2678.1,2677.6,0.7931]
[1739489398886,7.565,2678.1,2677.6,0.7931]
[1739489399059,3.73437,2677.9,2677.6,0.7931]
[1739489399396,3.7344,2677.8,2677.4,4.52927]
[1739489399600,3.7344,2677.8,2677.3,3.73508]
[1739489401126,3.7344,2677.8,2677.2,4.51531]
[1739489401127,3.7344,2677.8,2677.4,3.73494]
[1739489401333,5.32,2677.9,2677.5,3.73482]
[1739489402200,5.32,2677.9,2677.6,3.73465]
[1739489402505,5.32,2677.9,2677.6,0.7745]
[1739489403133,5.32,2677.9,2677.6,4.50918]
[1739489403304,5.32,2677.9,2677.7,3.73447]
[1739489405464,11.29903,2678.1,2677.7,3.73447]
[1739489405670,7.565,2678.1,2677.7,3.73447]
[1739489406073,11.29902,2678.1,2677.7,3.73447]
[1739489406296,3.73414,2678.0,2677.6,4.50912]
[1739489406995,7.565,2678.1,2677.6,0.7745]
[1739489407197,5.32,2678.1,2677.7,3.73453]
[1739489407567,9.05406,2678.1,2677.7,3.73453]
[1739489408646,9.054,2678.1,2677.6,0.7745]
[1739489409182,9.054,2678.1,2677.7,3.73454]
[1739489409497,3.73419,2678.0,2677.6,0.7745]
[1739489409676,7.46845,2678.0,2677.5,3.7347]
[1739489409882,5.32,2678.1,2677.5,3.7347]
[1739489410093,3.73437,2677.9,2677.5,3.7347]
[1739489410946,3.7342,2678.0,2677.5,3.7347]
[1739489411378,3.73437,2677.9,2677.4,4.54575]
[1739489412017,5.32,2678.0,2677.4,4.54575]
[1739489412213,5.97947,2677.8,2677.4,0.8108]
[1739489412412,3.73461,2677.7,2677.3,3.73501]
[1739489412774,3.73477,2677.6,2677.2,3.7567]
[1739489413012,3.73477,2677.6,2676.1,3.73677]
[1739489413013,5.84216668,2677.4,2676.1,3.73677]
[1739489413197,5.84216668,2677.4,2676.4,4.49297]
[1739489413198,3.73569,2676.9,2676.4,4.49297]
[1739489413518,3.73591,2676.8,2676.2,4.51344]
[1739489413711,3.73607,2676.7,2676.2,4.51344]
[1739489413916,3.73607,2676.7,2676.2,0.7769]
[1739489414118,3.73626,2676.5,2676.0,3.73687]
[1739489414279,3.73626,2676.5,2675.9,0.8296]
[1739489414280,9.57842668,2676.5,2675.9,4.56658]
[1739489414479,9.57842668,2676.5,2676.0,3.73691]
[1739489415676,13.31472668,2676.5,2675.9,4.56653]
[1739489415876,9.57842668,2676.5,2675.9,0.8296]
[1739489416124,5.84216668,2676.5,2676.0,3.73681]
[1739489416426,2.245,2676.6,2676.0,3.73681]
[1739489416635,3.73602,2676.7,2676.0,3.73681]
[1739489416636,5.84216668,2676.8,2676.2,3.73661]
[1739489417137,0.269,2676.9,2676.6,3.73607]
[1739489417437,5.32,2677.0,2676.8,3.7358]
[1739489417604,5.32,2677.3,2676.8,7.47152]
[1739489417799,12.65213668,2677.4,2676.8,3.73572]
[1739489418038,5.32,2677.4,2676.5,0.03735757]
[1739489418206,5.32,2677.4,2677.2,3.73522]
[1739489419431,5.32,2677.5,2677.2,4.184632]
[1739489419632,5.32,2677.5,2677.1,0.7589]
[1739489419834,9.05491,2677.5,2676.9,3.0]
[1739489420034,9.05491,2677.5,2676.9,6.73558]
[1739489420419,3.73503,2677.4,2676.9,6.73563]
[1739489420746,3.73503,2677.4,2676.8,4.49457]
[1739489420747,3.73526,2677.2,2676.8,0.7589]
[1739489421061,3.73562,2677.0,2676.5,3.7589]
[1739489421230,5.32,2676.9,2676.2,4.49544]
[1739489421437,3.7358,2676.8,2676.3,3.73638]
[1739489421630,3.73595,2676.7,2676.2,4.49544]
[1739489422634,3.73595,2676.7,2676.1,3.73672]
[1739489422635,3.7361,2676.6,2676.1,3.73672]
[1739489423050,3.73625,2676.5,2676.0,3.73686]
[1739489423871,0.565,2676.6,2676.1,3.7367]
[1739489424463,0.565,2676.6,2676.2,3.7366]
[1739489424768,6.54611,2676.6,2676.0,3.73681]
[1739489425586,4.30111,2676.6,2676.1,3.7367]
[1739489425742,6.54611,2676.6,2676.1,3.7367]
[1739489426263,0.565,2676.6,2676.0,3.73681]
[1739489426475,9.05603,2676.7,2676.2,3.73651]
[1739489426840,5.32,2676.7,2676.2,3.73657]
[1739489427039,9.05596,2676.7,2676.2,3.73657]
[1739489427642,9.05596,2676.7,2676.2,7.47314]
[1739489428037,11.30096,2676.7,2676.2,7.47314]
[1739489428376,11.30096,2676.7,2676.2,3.73656]
[1739489428929,5.32,2676.7,2675.8,0.86316574]
[1739489429039,5.32,2676.7,2676.5,3.73616]
[1739489429239,5.32,2676.7,2676.6,3.73608]
[1739489429545,5.32,2676.7,2675.9,0.76004657]
[1739489429857,5.32,2676.7,2676.5,3.73618]
[1739489430182,5.32,2676.7,2676.5,3.73615]
[1739489430354,5.32,2676.7,2676.5,3.73613]
[1739489430881,5.32,2676.7,2676.6,3.73608]
[1739489431080,5.84216668,2676.8,2675.2,3.59716668]
[1739489431278,5.98146,2676.4,2675.9,3.73695]
[1739489431498,5.98151,2676.3,2675.8,3.73713]
[1739489432581,2.245,2676.3,2675.9,3.73695]
[1739489432885,9.62103,2676.7,2676.1,3.73669]
[1739489433048,3.7361,2676.6,2676.1,3.73669]
[1739489433250,3.7361,2676.6,2676.0,3.73678]
[1739489433553,3.7361,2676.6,2676.1,3.73667]
[1739489433783,3.73624,2676.5,2676.0,7.47358]
[1739489434011,3.73624,2676.5,2676.0,3.73678]
[1739489434367,3.73629,2676.5,2676.0,3.73678]
[1739489434573,3.7361,2676.6,2676.1,3.73675]
[1739489435270,3.73622,2676.5,2676.1,3.73675]
[1739489436513,3.73622,2676.5,2676.0,3.73685]
[1739489437106,2.245,2676.4,2676.0,3.73685]
[1739489437623,2.245,2676.4,2675.9,3.73703]
[1739489437911,2.245,2676.4,2676.1,3.7367]
[1739489438114,2.245,2676.4,2676.0,3.73691]
[1739489439714,2.245,2676.4,2676.0,3.73692]
[1739489439891,2.245,2676.4,2675.9,3.73703]
[1739489440216,2.245,2676.4,2676.1,3.73677]
[1739489440714,5.98137,2676.4,2675.9,3.73703]
[1739489440877,2.245,2676.4,2676.0,3.73683]
[1739489441214,7.565,2676.4,2676.0,3.73683]
[1739489442362,7.565,2676.4,2676.1,3.7367]
[1739489442656,5.32,2676.8,2676.2,4.54312]
[1739489442815,9.05553,2677.0,2676.4,3.73623]
[1739489443014,9.05553,2677.0,2676.5,3.73614]
[1739489443432,5.32,2677.0,2676.6,3.73604]
[1739489443755,2.245,2676.9,2676.7,3.73591]
[1739489445113,2.245,2676.9,2676.8,3.7358]
[1739489445508,2.245,2676.9,2676.7,0.8065]
[1739489445714,5.98031,2677.2,2676.7,4.54234]
[1739489447946,3.73559,2677.0,2676.7,0.8065]
[1739489448139,7.4712,2677.0,2676.7,0.8065]
[1739489448358,3.73559,2677.0,2676.7,0.8065]
[1739489448659,5.98041,2677.1,2676.7,0.8065]
[1739489449197,2.245,2677.1,2676.7,0.8065]
[1739489449396,2.245,2677.0,2676.7,0.8065]
[1739489449899,7.565,2677.0,2676.7,0.8065]
[1739489450603,5.32,2677.0,2676.7,4.54237]
[1739489450953,5.32,2677.0,2676.7,0.8065]
[1739489451755,9.05554,2677.0,2676.7,0.8065]
[1739489451955,11.30054,2677.0,2676.5,4.52255]
[1739489452193,5.98073,2676.9,2676.5,0.7864]
[1739489452770,2.245,2676.9,2676.5,0.7864]
[1739489452974,2.245,2676.9,2676.5,4.52261]
[1739489453420,2.245,2676.9,2676.6,3.73608]
[1739489454382,2.245,2676.9,2676.5,4.5226]
[1739489455083,2.245,2676.9,2676.5,8.25875]
[1739489455821,7.565,2676.9,2676.5,8.25875]
[1739489456120,7.565,2676.9,2676.6,3.73607]
[1739489459195,7.565,2676.9,2676.5,4.52255]
[1739489459400,11.30075,2676.9,2676.5,0.7864]
[1739489459600,15.03651,2676.9,2676.5,0.7864]
[1739489459930,11.30075,2676.9,2676.5,4.52261]
[1739489460721,11.30074,2676.9,2676.5,3.73621]
[1739489461049,3.73591,2676.8,2676.2,0.8223]
[1739489461251,3.73591,2676.8,2676.3,3.73643]
[1739489461411,3.73591,2676.8,2676.3,7.47283]
[1739489461613,3.73591,2676.8,2676.4,3.73627]
[1739489462328,7.565,2676.9,2676.4,3.73627]
[1739489462653,11.30076,2676.9,2676.4,3.73627]
[1739489462819,2.245,2676.7,2676.2,4.55882]
[1739489463019,7.565,2676.7,2676.3,3.73648]
[1739489463556,3.73588,2676.8,2675.6,0.76454508]
[1739489463557,2.245,2676.1,2675.6,0.76454508]
[1739489463728,3.73749,2675.6,2675.4,0.8155]
[1739489463931,2.245,2675.7,2675.2,4.55343]
[1739489464131,2.245,2675.8,2675.2,1.270843]
[1739489464360,2.245,2675.8,2675.5,3.73754]
[1739489464815,2.245,2676.0,2675.5,3.73754]
[1739489465015,2.245,2676.0,2675.7,3.73725]
[1739489465925,2.245,2676.0,2675.6,3.73744]
[1739489465926,2.245,2676.1,2675.2,4.55352]
[1739489466126,2.245,2676.1,2675.8,3.73707]
[1739489466318,2.245,2676.1,2675.8,7.47419]
[1739489466516,2.245,2676.1,2675.8,3.73707]
[1739489466835,2.245,2676.1,2675.9,3.73697]
[1739489467032,2.245,2676.1,2675.8,3.73707]
[1739489467368,3.73644,2676.4,2675.8,3.73707]
[1739489467369,2.245,2676.4,2675.8,0.449757]
[1739489467664,2.245,2676.4,2676.0,3.73684]
[1739489468049,5.98138,2676.4,2675.9,3.737]
[1739489470023,2.245,2676.4,2675.9,3.73693]
[1739489470228,5.32,2676.4,2676.3,3.7365]
[1739489470465,2.245,2676.6,2676.3,4.559862]
[1739489470760,4.0046,2677.0,2676.3,4.559862]
[1739489470761,4.0046,2677.0,2676.5,3.7362]
[1739489471142,4.0046,2677.0,2676.5,7.4724]
[1739489471546,2.245,2676.9,2676.5,3.7362]
[1739489471740,7.7402,2677.0,2676.5,3.7362]
[1739489472166,4.0046,2677.0,2676.5,3.7362]
[1739489473538,0.269,2677.0,2676.6,3.73601]
[1739489473733,0.269,2677.0,2676.7,3.73585]
[1739489474271,0.269,2677.0,2676.4,0.8101]
[1739489474436,3.73576,2676.9,2676.4,4.54645]
[1739489474838,4.0046,2677.0,2676.5,3.7362]
[1739489475036,4.0046,2677.0,2676.5,7.47234]
[1739489475237,0.269,2677.0,2676.6,3.73605]
[1739489475878,3.73573,2676.9,2676.4,5.22210941]
[1739489476034,3.73573,2676.9,2676.4,4.54638]
[1739489476679,9.05573,2676.9,2676.4,4.54638]
[1739489477534,12.79148,2676.9,2676.4,4.54638]
[1739489477735,9.05573,2676.9,2676.4,4.54638]
[1739489477932,3.73644,2676.4,2675.9,4.50414]
[1739489478131,3.73664,2676.2,2675.7,3.73728]
[1739489478452,3.7365,2676.3,2675.7,3.73722]
[1739489478629,3.7365,2676.3,2675.8,3.73708]
[1739489478834,3.7365,2676.3,2675.6,4.50447]
[1739489479130,3.73671,2676.2,2675.7,3.73733]
[1739489479283,3.73651,2676.3,2675.8,3.7372]
[1739489479582,3.73651,2676.3,2675.8,3.73708]
[1739489479937,2.245,2676.4,2675.8,3.73708]
[1739489480147,5.98137,2676.4,2675.9,3.73699]
[1739489480571,5.9812,2676.6,2676.0,3.7369]
[1739489480775,3.73609,2676.6,2675.7,3.77458963]
[1739489480980,5.98109,2676.6,2676.0,3.73689]
[1739489481351,3.73601,2676.7,2676.2,3.73662]
[1739489481556,3.73581,2676.8,2676.3,3.73649]
[1739489481884,2.245,2676.7,2676.3,3.73649]
[1739489482085,2.245,2676.7,2676.4,3.73635]
[1739489482384,4.00431,2677.2,2676.7,3.73587]
[1739489482591,3.73538,2677.1,2676.7,3.73587]
[1739489482756,3.73538,2677.1,2676.6,4.50317]